fUSD/lending_fUSD_20250505
["ID","MTS","AMOUNT","RATE_DAILY","PERIOD"]
[359955461,1746447043644,-538.52589123,0.00019838,2]
[359955463,1746447043653,-450.0,0.00019838,2]
[359955465,1746447043662,-450.0,0.00019838,2]
[359955467,1746447043672,-570.93974561,0.00019838,2]
[359955469,1746447043681,-337.35052971,0.00019838,2]
[359955471,1746447043690,-470.0,0.00019838,2]
[359955473,1746447043700,-482.20484077,0.00019838,2]
[359955475,1746447043709,-470.0,0.00019838,2]
[359955477,1746447043719,-450.0,0.00019838,2]
[359955479,1746447043728,-490.0,0.00019838,2]
[359955481,1746447043738,-450.0,0.00019838,2]
[359955483,1746447043750,-447.69776053,0.00019838,2]
[359955485,1746447043760,-450.0,0.00019838,2]
[359955487,1746447043769,-450.0,0.00019838,2]
[359955489,1746447043779,-490.0,0.00019838,2]
[359955491,1746447043789,-450.0,0.00019838,2]
[359955493,1746447043798,-470.0,0.00019838,2]
[359955495,1746447043807,-450.0,0.00019838,2]
[359955497,1746447043818,-450.0,0.00019838,2]
[359955499,1746447043827,-450.0,0.00019838,2]
[359955501,1746447043837,-490.0,0.00019838,2]
[359955503,1746447043846,-470.0,0.00019838,2]
[359955505,1746447043855,-450.0,0.00019838,2]
[359955507,1746447043865,-454.19911642,0.00019838,2]
[359955509,1746447043874,-470.0,0.00019838,2]
[359955511,1746447043884,-509.14042241,0.00019838,2]
[359955513,1746447043893,-490.0,0.00019838,2]
[359955515,1746447043903,-156.14059126,0.00019838,2]
[359955517,1746447043914,-490.0,0.00019838,2]
[359955519,1746447043923,-183.43978532,0.00019838,2]
[359955521,1746447043933,-530.15081942,0.00019838,2]
[359955522,1746447043942,-331.78,0.00019838,2]
[359955525,1746447043952,-450.0,0.00019838,2]
[359955526,1746447043961,-450.0,0.00019838,2]
[359955528,1746447043971,-450.0,0.00019838,2]
[359955530,1746447043980,-450.0,0.00019838,2]
[359955532,1746447043989,-504.25859794,0.00019838,2]
[359955534,1746447043999,-450.0,0.00019838,2]
[359955536,1746447044008,-490.0,0.00019838,2]
[359955538,1746447044018,-463.34797235,0.00019838,2]
[359955540,1746447044027,-506.29217737,0.00019838,2]
[359955542,1746447044036,-594.61530769,0.00019838,2]
[359955544,1746447044046,-450.0,0.00019838,2]
[359955546,1746447044054,-450.0,0.00019838,2]
[359955548,1746447044064,-450.0,0.00019838,2]
[359955550,1746447044078,-420.0,0.00019838,2]
[359955552,1746447044087,-450.0,0.00019838,2]
[359955554,1746447044096,-450.0,0.00019838,2]
[359955556,1746447044106,-450.0,0.00019838,2]
[359955558,1746447044115,-505.32542359,0.00019838,2]
[359955560,1746447044124,-450.0,0.00019838,2]
[359955562,1746447044133,-450.0,0.00019838,2]
[359955564,1746447044142,-450.0,0.00019838,2]
[359955566,1746447044152,-484.68449158,0.00019838,2]
[359955568,1746447044161,-450.0,0.00019838,2]
[359955570,1746447044170,-450.001,0.00019838,2]
[359955571,1746447044179,-321.18501666,0.00019838,2]
[359955572,1746447044189,-450.0,0.00019838,2]
[359955573,1746447044198,-450.0,0.00019838,2]
[359955574,1746447044207,-450.0,0.00019838,2]
[359955575,1746447044216,-450.0,0.00019838,2]
[359955576,1746447044226,-340.12571815,0.00019838,2]
[359955577,1746447044234,-450.0,0.00019838,2]
[359955578,1746447044243,-450.0,0.00019838,2]
[359955579,1746447044253,-368.49532768,0.00019838,2]
[359955580,1746447044261,-475.85966245,0.00019838,2]
[359955581,1746447044271,-516.93871242,0.00019838,2]
[359955582,1746447044280,-477.38377552,0.00019838,2]
[359955583,1746447044289,-450.0,0.00019838,2]
[359955584,1746447044298,-450.0,0.00019838,2]
[359955585,1746447044307,-511.25042581,0.00019838,2]
[359955586,1746447044317,-476.96916308,0.00019838,2]
[359955587,1746447044326,-450.0,0.00019838,2]
[359955588,1746447044335,-450.0,0.00019838,2]
[359955589,1746447044344,-450.0,0.00019838,2]
[359955590,1746447044354,-450.0,0.00019838,2]
[359955591,1746447044363,-452.95669056,0.00019838,2]
[359955592,1746447044371,-450.0,0.00019838,2]
[359955593,1746447044381,-481.65786204,0.00019838,2]
[359955594,1746447044390,-432.46614545,0.00019838,2]
[359955595,1746447044399,-599.09817932,0.00019838,2]
[359955596,1746447044409,-450.0,0.00019838,2]
[359955597,1746447044418,-450.00631858,0.00019838,2]
[359955598,1746447044427,-450.0,0.00019838,2]
[359955599,1746447044436,-450.0,0.00019838,2]
[359955600,1746447044445,-450.0,0.00019838,2]
[359955601,1746447044454,-450.0,0.00019838,2]
[359955602,1746447044464,-450.0,0.00019838,2]
[359955603,1746447044473,-458.59749798,0.00019838,2]
[359955604,1746447044483,-530.54859394,0.00019838,2]
[359955605,1746447044492,-450.0,0.00019838,2]
[359955606,1746447044501,-450.0,0.00019838,2]
[359955607,1746447044510,-450.0,0.00019838,2]
[359955608,1746447044520,-394.95885455,0.00019838,2]
[359955609,1746447044529,-450.0,0.00019838,2]
[359955610,1746447044539,-450.0,0.00019838,2]
[359955611,1746447044548,-320.92344556,0.00019838,2]
[359955612,1746447044557,-505.98,0.00019838,2]
[359955613,1746447044566,-292.06268973,0.00019838,2]
[359955614,1746447044576,-450.0,0.00019838,2]
[359955615,1746447044585,-450.0,0.00019838,2]
[359955616,1746447044595,-504.71444704,0.00019838,2]
[359955617,1746447044605,-450.0,0.00019838,2]
[359955618,1746447044614,-450.0,0.00019838,2]
[359955619,1746447044623,-450.0,0.00019838,2]
[359955620,1746447044633,-450.0,0.00019838,2]
[359955621,1746447044642,-516.13,0.00019838,2]
[359955622,1746447044654,-450.0,0.00019838,2]
[359955623,1746447044664,-251.00218878,0.00019838,2]
[359955624,1746447044673,-466.82890974,0.00019838,2]
[359955625,1746447044682,-450.0,0.00019838,2]
[359955626,1746447044692,-450.0,0.00019838,2]
[359955627,1746447044702,-450.0,0.00019838,2]
[359955628,1746447044711,-541.6718532,0.00019838,2]
[359955629,1746447044721,-450.0,0.00019838,2]
[359955630,1746447044731,-467.62767513,0.00019838,2]
[359955631,1746447044741,-491.31237196,0.00019838,2]
[359955632,1746447044754,-450.0,0.00019838,2]
[359955633,1746447044764,-450.0,0.00019838,2]
[359955634,1746447044774,-504.2651379,0.00019838,2]
[359955635,1746447044785,-478.76350619,0.00019838,2]
[359955636,1746447044797,-450.0,0.00019838,2]
[359955637,1746447044806,-450.0,0.00019838,2]
[359955638,1746447044816,-450.0,0.00019838,2]
[359955639,1746447044826,-455.27434682,0.00019838,2]
[359955640,1746447044836,-450.0,0.00019838,2]
[359955641,1746447044845,-450.0,0.00019838,2]
[359955642,1746447044855,-450.0,0.00019838,2]
[359955643,1746447044864,-450.0,0.00019838,2]
[359955644,1746447044874,-450.0,0.00019838,2]
[359955645,1746447044884,-450.0,0.00019838,2]
[359955646,1746447045018,-450.0,0.00019838,2]
[359955647,1746447045043,-450.0,0.00019838,2]
[359955648,1746447045053,-502.41915561,0.00019838,2]
[359955649,1746447045062,-450.0,0.00019838,2]
[359955650,1746447045071,-450.0,0.00019838,2]
[359955651,1746447045081,-450.0,0.00019838,2]
[359955652,1746447045090,-450.0,0.00019838,2]
[359955653,1746447045100,-450.0,0.00019838,2]
[359955654,1746447045109,-450.0,0.00019838,2]
[359955655,1746447045118,-450.0,0.00019838,2]
[359955656,1746447045128,-450.0,0.00019838,2]
[359955657,1746447045137,-450.0,0.00019838,2]
[359955658,1746447045146,-473.56721319,0.00019838,2]
[359955659,1746447045155,-450.0,0.00019838,2]
[359955660,1746447045164,-475.26860654,0.00019838,2]
[359955661,1746447045173,-406.15095618,0.00019838,2]
[359955662,1746447045183,-450.0,0.00019838,2]
[359955663,1746447045192,-450.0,0.00019838,2]
[359955664,1746447045202,-450.0,0.00019838,2]
[359955665,1746447045211,-250.0,0.00019838,2]
[359955666,1746447045221,-478.66436726,0.00019838,2]
[359955667,1746447045231,-150.17904001,0.00019838,2]
[359955668,1746447045240,-499.51788771,0.00019838,2]
[359955669,1746447045249,-450.0,0.00019838,2]
[359955670,1746447045259,-450.0,0.00019838,2]
[359955671,1746447045268,-450.0,0.00019838,2]
[359955672,1746447045278,-450.0,0.00019838,2]
[359955673,1746447045287,-450.0,0.00019838,2]
[359955674,1746447045297,-450.0,0.00019838,2]
[359955675,1746447045306,-450.0,0.00019838,2]
[359955676,1746447045316,-450.0,0.00019838,2]
[359955677,1746447045325,-450.0,0.00019838,2]
[359955678,1746447045334,-450.0,0.00019838,2]
[359955679,1746447045343,-450.0,0.00019838,2]
[359955680,1746447045352,-450.0,0.00019838,2]
[359955681,1746447045361,-562.00679849,0.00019838,2]
[359955682,1746447045370,-450.0,0.00019838,2]
[359955683,1746447045379,-450.0,0.00019838,2]
[359955684,1746447045388,-450.0,0.00019838,2]
[359955685,1746447045398,-450.0,0.00019838,2]
[359955686,1746447045407,-450.0,0.00019838,2]
[359955687,1746447045416,-450.0,0.00019838,2]
[359955688,1746447045426,-450.0,0.00019838,2]
[359955689,1746447045435,-450.0,0.00019838,2]
[359955690,1746447045444,-492.82152274,0.00019838,2]
[359955691,1746447045454,-514.71549102,0.00019838,2]
[359955692,1746447045463,-498.09399369,0.00019838,2]
[359955693,1746447045472,-450.0,0.00019838,2]
[359955694,1746447045481,-450.0,0.00019838,2]
[359955695,1746447045491,-530.74337923,0.00019838,2]
[359955696,1746447045500,-450.0,0.00019838,2]
[359955697,1746447045510,-450.0,0.00019838,2]
[359955698,1746447045519,-150.0,0.00019838,2]
[359955699,1746447045528,-450.0,0.00019838,2]
[359955700,1746447045538,-359.84661358,0.00019838,2]
[359955701,1746447045547,-450.0,0.00019838,2]
[359955702,1746447045556,-450.0,0.00019838,2]
[359955703,1746447045565,-450.0,0.00019838,2]
[359955704,1746447045574,-485.97858072,0.00019838,2]
[359955705,1746447045584,-450.0,0.00019838,2]
[359955706,1746447045593,-450.0,0.00019838,2]
[359955707,1746447045602,-450.0,0.00019838,2]
[359955708,1746447045611,-450.0,0.00019838,2]
[359955709,1746447045621,-450.0,0.00019838,2]
[359955710,1746447045630,-450.0,0.00019838,2]
[359955711,1746447045641,-294.53970089,0.00019838,2]
[359955712,1746447045651,-450.0,0.00019838,2]
[359955713,1746447045660,-483.29251598,0.00019838,2]
[359955714,1746447045671,-450.0,0.00019838,2]
[359955715,1746447045682,-480.60723006,0.00019838,2]
[359955716,1746447045693,-450.0,0.00019838,2]
[359955717,1746447045702,-450.0,0.00019838,2]
[359955718,1746447045711,-450.0,0.00019838,2]
[359955719,1746447045720,-450.0,0.00019838,2]
[359955720,1746447045730,-450.0,0.00019838,2]
[359955721,1746447045739,-552.33778262,0.00019838,2]
[359955722,1746447045753,-450.0,0.00019838,2]
[359955723,1746447045763,-450.0,0.00019838,2]
[359955724,1746447045773,-450.0,0.00019838,2]
[359955725,1746447045783,-503.98678499,0.00019838,2]
[359955726,1746447045793,-450.0,0.00019838,2]
[359955727,1746447045803,-504.80928869,0.00019838,2]
[359955728,1746447045812,-450.0,0.00019838,2]
[359955729,1746447045823,-381.44,0.00019838,2]
[359955730,1746447045832,-450.0,0.00019838,2]
[359955731,1746447045841,-450.0,0.00019838,2]
[359955732,1746447045850,-450.0,0.00019838,2]
[359955733,1746447045859,-450.0,0.00019838,2]
[359955734,1746447045868,-450.9972277,0.00019838,2]
[359955735,1746447045878,-450.0,0.00019838,2]
[359955736,1746447045887,-493.26216291,0.00019838,2]
[359955737,1746447045896,-450.0,0.00019838,2]
[359955738,1746447045905,-504.83469372,0.00019838,2]
[359955739,1746447045914,-450.0,0.00019838,2]
[359955740,1746447045924,-450.0,0.00019838,2]
[359955742,1746447045934,-510.75434921,0.00019838,2]
[359955744,1746447045943,-450.0,0.00019838,2]
[359955747,1746447045953,-450.0,0.00019838,2]
[359955749,1746447045962,-450.0,0.00019838,2]
[359955751,1746447045971,-512.80715453,0.00019838,2]
[359955752,1746447045980,-450.0,0.00019838,2]
[359955753,1746447045990,-450.0,0.00019838,2]
[359955754,1746447045999,-450.0,0.00019838,2]
[359955756,1746447046009,-450.0,0.00019838,2]
[359955757,1746447046018,-450.0,0.00019838,2]
[359955758,1746447046027,-517.94623228,0.00019838,2]
[359955759,1746447046036,-450.0,0.00019838,2]
[359955760,1746447046046,-450.0,0.00019838,2]
[359955761,1746447046055,-450.0,0.00019838,2]
[359955762,1746447046064,-450.0,0.00019838,2]
[359955763,1746447046075,-450.0,0.00019838,2]
[359955764,1746447046084,-450.0,0.00019838,2]
[359955765,1746447046093,-450.0,0.00019838,2]
[359955766,1746447046103,-450.0,0.00019838,2]
[359955767,1746447046112,-501.96085855,0.00019838,2]
[359955768,1746447046122,-450.0,0.00019838,2]
[359955769,1746447046131,-522.65492399,0.00019838,2]
[359955770,1746447046141,-484.18438126,0.00019838,2]
[359955771,1746447046151,-450.0,0.00019838,2]
[359955772,1746447046161,-450.0,0.00019838,2]
[359955773,1746447046170,-450.0,0.00019838,2]
[359955774,1746447046180,-560.34819896,0.00019838,2]
[359955775,1746447046189,-450.0,0.00019838,2]
[359955776,1746447046198,-450.0,0.00019838,2]
[359955777,1746447046207,-498.86807043,0.00019838,2]
[359955778,1746447046217,-596.02300208,0.00019838,2]
[359955779,1746447046226,-470.60779098,0.00019838,2]
[359955780,1746447046235,-450.0,0.00019838,2]
[359955781,1746447046245,-487.7425488,0.00019838,2]
[359955782,1746447046254,-561.44755332,0.00019838,2]
[359955783,1746447046263,-450.0,0.00019838,2]
[359955784,1746447046273,-450.0,0.00019838,2]
[359955785,1746447046282,-450.0,0.00019838,2]
[359955786,1746447046292,-450.0,0.00019838,2]
[359955787,1746447046301,-450.0,0.00019838,2]
[359955788,1746447046310,-509.49896181,0.00019838,2]
[359955789,1746447046320,-450.0,0.00019838,2]
[359955790,1746447046330,-450.0,0.00019838,2]
[359955791,1746447046339,-450.0,0.00019838,2]
[359955792,1746447046348,-450.0,0.00019838,2]
[359955793,1746447046358,-490.0,0.00019838,2]
[359955794,1746447046367,-483.61449826,0.00019838,2]
[359955795,1746447046376,-450.0,0.00019838,2]
[359955796,1746447046386,-450.0,0.00019838,2]
[359955797,1746447046395,-450.0,0.00019838,2]
[359955798,1746447046405,-470.9220469,0.00019838,2]
[359955799,1746447046415,-450.0,0.00019838,2]
[359955800,1746447046424,-529.43159874,0.00019838,2]
[359955801,1746447046434,-450.0,0.00019838,2]
[359955802,1746447046444,-502.27667983,0.00019838,2]
[359955803,1746447046454,-450.0,0.00019838,2]
[359955805,1746447046463,-450.0,0.00019838,2]
[359955807,1746447046472,-450.0,0.00019838,2]
[359955809,1746447046482,-450.0,0.00019838,2]
[359955811,1746447046492,-490.0,0.00019838,2]
[359955813,1746447046502,-269.86174605,0.00019838,2]
[359955815,1746447046511,-450.0,0.00019838,2]
[359955817,1746447046521,-450.0,0.00019838,2]
[359955819,1746447046531,-450.0,0.00019838,2]
[359955821,1746447046541,-481.85679309,0.00019838,2]
[359955823,1746447046550,-450.0,0.00019838,2]
[359955826,1746447046559,-490.0,0.00019838,2]
[359955828,1746447046568,-450.0,0.00019838,2]
[359955830,1746447046577,-450.0,0.00019838,2]
[359955832,1746447046587,-450.0,0.00019838,2]
[359955834,1746447046596,-450.0,0.00019838,2]
[359955835,1746447046605,-450.0,0.00019838,2]
[359955837,1746447046615,-450.0,0.00019838,2]
[359955839,1746447046624,-488.94965608,0.00019838,2]
[359955841,1746447046633,-450.0,0.00019838,2]
[359955843,1746447046642,-459.30736511,0.00019838,2]
[359955845,1746447046652,-450.0,0.00019838,2]
[359955847,1746447046661,-450.0,0.00019838,2]
[359955849,1746447046670,-450.0,0.00019838,2]
[359955851,1746447046679,-302.39333609,0.00019838,2]
[359955853,1746447046689,-450.0,0.00019838,2]
[359955855,1746447046698,-450.0,0.00019838,2]
[359955857,1746447046707,-450.0,0.00019838,2]
[359955859,1746447046717,-271.50088205,0.00019838,2]
[359955861,1746447046726,-450.0,0.00019838,2]
[359955863,1746447046735,-450.0,0.00019838,2]
[359955865,1746447046746,-450.0,0.00019838,2]
[359955866,1746447046756,-450.0,0.00019838,2]
[359955869,1746447046766,-450.0,0.00019838,2]
[359955871,1746447046776,-480.88475178,0.00019838,2]
[359955873,1746447046785,-450.0,0.00019838,2]
[359955875,1746447046795,-480.68738564,0.00019838,2]
[359955877,1746447046804,-489.32080697,0.00019838,2]
[359955879,1746447046813,-450.0,0.00019838,2]
[359955881,1746447046824,-488.89309305,0.00019838,2]
[359955883,1746447046834,-500.0,0.00019838,2]
[359955885,1746447046843,-450.0,0.00019838,2]
[359955887,1746447046852,-450.0,0.00019838,2]
[359955889,1746447046861,-523.00851528,0.00019838,2]
[359955891,1746447046871,-542.31902718,0.00019838,2]
[359955893,1746447046880,-450.0,0.00019838,2]
[359955894,1746447046889,-450.0,0.00019838,2]
[359955895,1746447046898,-450.0,0.00019838,2]
[359955896,1746447046907,-450.0,0.00019838,2]
[359955897,1746447046915,-450.0,0.00019838,2]
[359955898,1746447046925,-450.0,0.00019838,2]
[359955899,1746447046933,-450.0,0.00019838,2]
[359955900,1746447046942,-450.0,0.00019838,2]
[359955901,1746447046951,-450.0,0.00019838,2]
[359955902,1746447046961,-475.34782555,0.00019838,2]
[359955903,1746447046970,-450.0,0.00019838,2]
[359955904,1746447046979,-289.11575544,0.00019838,2]
[359955905,1746447046988,-450.0,0.00019838,2]
[359955906,1746447046996,-574.1466733,0.00019838,2]
[359955907,1746447047006,-450.0,0.00019838,2]
[359955908,1746447047015,-492.83464687,0.00019838,2]
[359955910,1746447047024,-476.37239003,0.00019838,2]
[359955911,1746447047033,-450.0,0.00019838,2]
[359955913,1746447047042,-551.13850138,0.00019838,2]
[359955915,1746447047051,-402.75333206,0.00019838,2]
[359955917,1746447047060,-550.00011403,0.00019838,2]
[359955919,1746447047070,-539.66931972,0.00019838,2]
[359955921,1746447047079,-450.0,0.00019838,2]
[359955923,1746447047089,-450.0,0.00019838,2]
[359955925,1746447047098,-450.0,0.00019838,2]
[359955927,1746447047107,-450.0,0.00019838,2]
[359955929,1746447047116,-450.0,0.00019838,2]
[359955931,1746447047126,-450.0,0.00019838,2]
[359955933,1746447047135,-450.0,0.00019838,2]
[359955935,1746447047144,-552.87003599,0.00019838,2]
[359955937,1746447047153,-450.0,0.00019838,2]
[359955939,1746447047162,-513.26624994,0.00019838,2]
[359955941,1746447047171,-450.0,0.00019838,2]
[359955943,1746447047180,-450.0,0.00019838,2]
[359955945,1746447047189,-525.10261095,0.00019838,2]
[359955947,1746447047199,-558.31809093,0.00019838,2]
[359955949,1746447047209,-450.0,0.00019838,2]
[359955951,1746447047219,-519.57888403,0.00019838,2]
[359955953,1746447047229,-450.0,0.00019838,2]
[359955955,1746447047238,-461.08027296,0.00019838,2]
[359955957,1746447047248,-450.0,0.00019838,2]
[359955959,1746447047257,-450.0,0.00019838,2]
[359955961,1746447047266,-450.0,0.00019838,2]
[359955963,1746447047275,-473.87024221,0.00019838,2]
[359955965,1746447047284,-450.0,0.00019838,2]
[359955967,1746447047293,-526.30632519,0.00019838,2]
[359955969,1746447047303,-157.48042449,0.00019838,2]
[359955971,1746447047312,-482.2094873,0.00019838,2]
[359955973,1746447047321,-450.0,0.00019838,2]
[359955975,1746447047331,-450.0,0.00019838,2]
[359955977,1746447047341,-550.50346898,0.00019838,2]
[359955983,1746447047350,-450.0,0.00019838,2]
[359955985,1746447047395,-450.0,0.00019838,2]
[359955987,1746447047403,-478.71490821,0.00019838,2]
[359955989,1746447047412,-532.21987311,0.00019838,2]
[359955991,1746447047421,-498.97247815,0.00019838,2]
[359955993,1746447047430,-481.3121238,0.00019838,2]
[359955995,1746447047440,-450.0,0.00019838,2]
[359955997,1746447047449,-450.0,0.00019838,2]
[359955999,1746447047458,-450.0,0.00019838,2]
[359956001,1746447047468,-500.0,0.00019838,2]
[359956003,1746447047477,-450.0,0.00019838,2]
[359956005,1746447047486,-515.8270493,0.00019838,2]
[359956007,1746447047495,-571.84581449,0.00019838,2]
[359956009,1746447047505,-513.66195298,0.00019838,2]
[359956011,1746447047515,-519.91007875,0.00019838,2]
[359956013,1746447047524,-477.34660672,0.00019838,2]
[359956015,1746447047533,-450.0,0.00019838,2]
[359956017,1746447047542,-450.0,0.00019838,2]
[359956019,1746447047551,-450.0,0.00019838,2]
[359956020,1746447047560,-478.82173312,0.00019838,2]
[359956022,1746447047569,-314.61191291,0.00019838,2]
[359956025,1746447047578,-450.0,0.00019838,2]
[359956026,1746447047587,-481.13806725,0.00019838,2]
[359956028,1746447047597,-1000.0,0.00019838,2]
[359956030,1746447047606,-450.0,0.00019838,2]
[359956032,1746447047615,-450.0,0.00019838,2]
[359956034,1746447047624,-450.0,0.00019838,2]
[359956036,1746447047634,-450.0,0.00019838,2]
[359956038,1746447047643,-450.0,0.00019838,2]
[359956040,1746447047652,-450.0,0.00019838,2]
[359956043,1746447047662,-507.71435528,0.00019838,2]
[359956044,1746447047671,-482.89809536,0.00019838,2]
[359956046,1746447047680,-450.0,0.00019838,2]
[359956048,1746447047690,-450.0,0.00019838,2]
[359956050,1746447047699,-510.27083061,0.00019838,2]
[359956052,1746447047709,-507.13865367,0.00019838,2]
[359956054,1746447047718,-450.0,0.00019838,2]
[359956056,1746447047727,-490.0,0.00019838,2]
[359956058,1746447047736,-470.0,0.00019838,2]
[359956060,1746447047749,-541.7120699,0.00019838,2]
[359956062,1746447047758,-450.0,0.00019838,2]
[359956064,1746447047768,-478.93966527,0.00019838,2]
[359956066,1746447047777,-450.0,0.00019838,2]
[359956068,1746447047787,-450.0,0.00019838,2]
[359956070,1746447047796,-543.14725712,0.00019838,2]
[359956072,1746447047806,-502.95091844,0.00019838,2]
[359956074,1746447047815,-450.0,0.00019838,2]
[359956076,1746447047826,-183.28324077,0.00019838,2]
[359956078,1746447047834,-490.0,0.00019838,2]
[359956080,1746447047844,-525.81598127,0.00019838,2]
[359956082,1746447047853,-522.98812998,0.00019838,2]
[359956084,1746447047862,-535.53426083,0.00019838,2]
[359956085,1746447047871,-450.0,0.00019838,2]
[359956087,1746447047880,-450.0,0.00019838,2]
[359956089,1746447047889,-401.2203024,0.00019838,2]
[359956091,1746447047898,-514.55113497,0.00019838,2]
[359956093,1746447047907,-513.1854534,0.00019838,2]
[359956095,1746447047916,-428.30602882,0.00019838,2]
[359956097,1746447047925,-450.0,0.00019838,2]
[359956099,1746447047934,-450.0,0.00019838,2]
[359956101,1746447047944,-473.783571,0.00019838,2]
[359956103,1746447047953,-450.0,0.00019838,2]
[359956105,1746447047963,-490.0,0.00019838,2]
[359956107,1746447047972,-490.0,0.00019838,2]
[359956109,1746447047981,-513.39340979,0.00019838,2]
[359956111,1746447047990,-470.0,0.00019838,2]
[359956113,1746447047999,-450.0,0.00019838,2]
[359956115,1746447048008,-450.0,0.00019838,2]
[359956117,1746447048018,-569.5195184,0.00019838,2]
[359956119,1746447048027,-554.72561738,0.00019838,2]
[359956121,1746447048037,-450.0,0.00019838,2]
[359956123,1746447048046,-450.0,0.00019838,2]
[359956125,1746447048056,-479.99815868,0.00019838,2]
[359956127,1746447048065,-470.0,0.00019838,2]
[359956129,1746447048077,-450.0,0.00019838,2]
[359956131,1746447048087,-476.59331421,0.00019838,2]
[359956134,1746447048096,-450.0,0.00019838,2]
[359956135,1746447048106,-490.0,0.00019838,2]
[359956137,1746447048115,-420.0,0.00019838,2]
[359956139,1746447048125,-450.0,0.00019838,2]
[359956141,1746447048134,-490.0,0.00019838,2]
[359956143,1746447048144,-450.0,0.00019838,2]
[359956145,1746447048153,-566.0979337,0.00019838,2]
[359956147,1746447048163,-450.0,0.00019838,2]
[359956149,1746447048172,-479.99986811,0.00019838,2]
[359956151,1746447048182,-450.0,0.00019838,2]
[359956153,1746447048193,-450.0,0.00019838,2]
[359956155,1746447048202,-450.0,0.00019838,2]
[359956158,1746447048212,-450.0,0.00019838,2]
[359956160,1746447048222,-554.72597094,0.00019838,2]
[359956162,1746447048232,-450.0,0.00019838,2]
[359956163,1746447048241,-450.0,0.00019838,2]
[359956166,1746447048252,-376.44833196,0.00019838,2]
[359956167,1746447048261,-450.0,0.00019838,2]
[359956170,1746447048270,-450.0,0.00019838,2]
[359956171,1746447048279,-539.11,0.00019838,2]
[359956173,1746447048289,-450.0,0.00019838,2]
[359956175,1746447048298,-450.0,0.00019838,2]
[359956177,1746447048307,-450.0,0.00019838,2]
[359956179,1746447048316,-450.0,0.00019838,2]
[359956181,1746447048326,-450.0,0.00019838,2]
[359956183,1746447048335,-450.0,0.00019838,2]
[359956185,1746447048345,-10083.06,0.00019838,2]
[359956187,1746447048354,-450.0,0.00019838,2]
[359956190,1746447048364,-450.0,0.00019838,2]
[359956192,1746447048373,-450.0,0.00019838,2]
[359956193,1746447048383,-450.0,0.00019838,2]
[359956195,1746447048392,-450.0,0.00019838,2]
[359956198,1746447048402,-514.94474785,0.00019838,2]
[359956200,1746447048411,-470.0,0.00019838,2]
[359956202,1746447048421,-450.0,0.00019838,2]
[359956204,1746447048430,-450.0,0.00019838,2]
[359956206,1746447048440,-450.0,0.00019838,2]
[359956208,1746447048450,-450.0,0.00019838,2]
[359956210,1746447048459,-450.0,0.00019838,2]
[359956212,1746447048469,-450.0,0.00019838,2]
[359956214,1746447048479,-450.0,0.00019838,2]
[359956216,1746447048489,-506.56,0.00019838,2]
[359956218,1746447048499,-450.0,0.00019838,2]
[359956220,1746447048508,-268.26422272,0.00019838,2]
[359956222,1746447048518,-450.0,0.00019838,2]
[359956224,1746447048528,-450.0,0.00019838,2]
[359956226,1746447048538,-450.0,0.00019838,2]